fUSD/lending_fUSD_20240217
["ID","MTS","AMOUNT","RATE_DAILY","PERIOD"]
[314271714,1708138246037,-152.31,0.00039334,2]
[314271715,1708138246046,-151.021788,0.00039348,39]
[314271716,1708138246055,-151.021788,0.00039348,39]
[314271717,1708138246065,-151.021788,0.00039348,39]
[314271718,1708138246074,-198.36585833,0.0003937,4]
[314271719,1708138246083,-1453.31663693,0.00039371,2]
[314271720,1708138246092,-32665.2836308,0.00039371,40]
[314271721,1708138246102,-75115.06757299,0.00039372,2]
[314271722,1708138246116,-4150.63000031,0.00039372,2]
[314271723,1708138246128,-453.69723327,0.00039372,2]
[314271724,1708138246139,-6713.72031923,0.00039372,2]
[314271725,1708138270472,2139.0,0.00023,2]
[314271726,1708138270502,27355.18069957,0.00023,2]
[314271727,1708138270528,2729239.53081843,0.00023,2]
[314271728,1708138270557,50000.0,0.00023,2]
[314271729,1708138270752,-264.01944797,0.00023,2]
[314271730,1708138271733,-226.45055203,0.00023,2]
[314271731,1708138272187,-150.0,0.00023,2]
[314271732,1708138272941,-150.0,0.00023,2]
[314271733,1708138273672,-150.0,0.00023,2]
[314271734,1708138274229,-150.0,0.00023,2]
[314271735,1708138274851,-150.0,0.00023,2]
[314271736,1708138275307,-150.0,0.00023,2]
[314271737,1708138277409,-150.0,0.00023,2]
[314271738,1708138278260,-150.0,0.00023,2]
[314271739,1708138278887,-150.0,0.00023,2]
[314271740,1708138280592,-150.0,0.00023,2]
[314271741,1708138281325,-150.0,0.00023,2]
[314271742,1708138283487,-150.0,0.00023,2]
[314271743,1708138284034,-150.0,0.00023,2]
[314271744,1708138287261,-150.0,0.00023,2]
[314271745,1708138288802,-150.0,0.00023,2]
[314271746,1708138289213,-150.0,0.00023,2]
[314271747,1708138289707,-150.0,0.00023,2]
[314271748,1708138290399,-150.0,0.00023,2]
[314271749,1708138292317,-150.0,0.00023,2]
[314271750,1708138292617,150.0,0.0001,2]
[314271751,1708138292638,114.01944797,0.0001,2]
[314271752,1708138294114,-185.98055203,0.00023,2]
[314271753,1708138295395,1331.53019364,0.0002,2]
[314271754,1708138305636,-150.0,0.00023,2]
[314271755,1708138307019,-150.0,0.00023,2]
[314271756,1708138309232,-150.0,0.00023,2]
[314271757,1708138309631,-150.0,0.00023,2]
[314271758,1708138347789,155.0,0.0002185,2]
[314271759,1708138365786,155.0,0.0002185,2]
[314271761,1708138435887,155.0,0.00020758,2]
[314271762,1708138448992,4191.66694823,0.0002,2]
[314271763,1708138453862,155.0,0.00021848,2]
[314271764,1708138458067,311.95466827,0.0002,2]
[314271765,1708138463972,427.19399042,0.000137,2]
[314271766,1708138471863,155.0,0.00021848,2]
[314271767,1708138489861,155.0,0.00021848,2]
[314271768,1708138509880,198.73404759,0.00021848,2]
[314271769,1708138523752,391.73940431,0.00022999,10]
[314271770,1708138678557,2997.19192187,0.00020608,5]
[314271771,1708138685386,150.0,0.00022,2]
[314271772,1708138686684,190.20215852,0.00022548,2]
[314271773,1708138715451,194.52890847,0.000229,4]
[314271774,1708138738761,250.0,0.00022,2]
[314271775,1708138740068,250.0,0.00022274,2]
[314271776,1708138741370,250.0,0.00022548,2]
[314271777,1708138768379,183.4263793,0.00022697,2]
[314271778,1708138793983,190.5,0.0002469,120]
[314271779,1708138799558,166.58030812,0.00022694,2]
[314271780,1708138845836,194.52890847,0.000229,4]
[314271781,1708138903920,1168.71130591,0.00022697,2]
[314271782,1708138923686,150.0,0.00022,2]
[314271783,1708138926337,550.0,0.00025,3]
[314271784,1708138938621,150.0,0.00022,2]
[314271785,1708138976294,300.0,0.00022,2]
[314271786,1708139056960,154.73626959,0.00022,2]
[314271787,1708139059472,177.43,0.00022,2]
[314271788,1708139077819,250.0,0.00022125,2]
[314271789,1708139106103,182.18,0.00022124,2]
[314271790,1708139135383,250.0,0.00022124,2]
[314271791,1708139201276,746.20785736,0.0002464,9]
[314271792,1708139205397,549.68,0.00021756,2]
[314271793,1708139212782,250.0,0.00022532,3]
[314271794,1708139213298,500.0,0.00023902,3]
[314271795,1708139219348,1098.96,0.00019779,2]
[314271796,1708139219602,1098.96,0.00022043,2]
[314271797,1708139223768,758.35,0.00022532,3]
[314271798,1708139229675,3638.05373041,0.00021689,2]
[314271799,1708139229694,1299.08626959,0.00021689,2]
[314271800,1708139233838,500.0,0.00021689,2]
[314271801,1708139244757,203.61,0.00021667,2]
[314271802,1708139271835,537.42161401,0.00022201,2]
[314271803,1708139273651,546.12694598,0.00022114,2]
[314271804,1708139275497,1381.67,0.00021689,2]
[314271805,1708139275693,1381.67,0.00021803,2]
[314271806,1708139275894,1381.67,0.00021917,2]
[314271807,1708139276073,768.74517042,0.00022201,2]
[314271808,1708139276098,7.55304266,0.00022201,2]
[314271809,1708139276164,1381.67,0.00022032,2]
[314271810,1708139276360,1381.67,0.00022146,2]
[314271811,1708139278648,546.12694579,0.00022155,2]
[314271812,1708139282273,159.8,0.0002161,10]
[314271813,1708139283645,546.12694579,0.00022197,2]
[314271814,1708139326817,419.6,0.00021469,2]
[314271815,1708139330857,714.88427398,0.000222,2]
[314271816,1708139346684,707.35777956,0.00022901,6]
[314271817,1708139355432,200.0,0.00021468,2]
[314271818,1708139359996,537.42161401,0.00022201,2]
[314271819,1708139396561,2000.0,0.00021664,2]
[314271820,1708139402967,264.94717777,0.00021664,2]
[314271821,1708139402986,235.05282223,0.00021664,2]
[314271822,1708139406395,683.64,0.00021668,2]
[314271829,1708139431544,-844.02,0.00022202,2]
[314271830,1708139431553,-1197.54012,0.00022203,2]
[314271831,1708139431563,-169.18,0.00022214,2]
[314271833,1708139431573,-918.72,0.00022214,2]
[314271834,1708139431582,-546.12694579,0.00022238,2]
[314271835,1708139431592,-1381.67,0.0002226,2]
[314271836,1708139431601,-546.12694579,0.00022279,2]
[314271837,1708139431611,-208.33,0.0002229,2]
[314271838,1708139431620,-161.60960398,0.0002229,2]
[314271839,1708139431631,-150.0,0.00022291,2]
[314271840,1708139431641,-23900.0,0.00022292,2]
[314271841,1708139431650,-2244.91,0.00022292,2]
[314271842,1708139431659,-768.21,0.00022292,2]
[314271843,1708139431668,-499.99,0.00022292,2]
[314271844,1708139431678,-546.12694579,0.00022321,2]
[314271845,1708139431687,-163.54,0.0002234,2]
[314271846,1708139431696,-208.33,0.00022351,2]
[314271847,1708139431706,-546.12694579,0.00022362,2]
[314271848,1708139431715,-1381.67,0.00022374,2]
[314271849,1708139431724,-546.12694579,0.00022404,2]
[314271850,1708139431734,-208.33,0.00022413,2]
[314271851,1708139431744,-800.0,0.00022421,2]
[314271852,1708139431755,-5162.55,0.00022421,2]
[314271853,1708139431764,-533.29,0.00022421,2]
[314271854,1708139431774,-877.22,0.00022421,2]
[314271855,1708139431783,-546.12694579,0.00022445,2]
[314271856,1708139431792,-2948.10996124,0.00022448,2]
[314271857,1708139431802,-208.33,0.00022474,2]
[314271858,1708139431811,-755.15,0.00022474,2]
[314271859,1708139431820,-546.12694579,0.00022486,2]
[314271860,1708139431829,-1381.67,0.00022488,2]
[314271861,1708139431838,-546.12694579,0.00022528,2]
[314271862,1708139431847,-456.3676054,0.00022531,2]
[314271863,1708139431856,-208.33,0.00022535,2]
[314271864,1708139431866,-9538.21576485,0.00022541,2]
[314271865,1708139431876,-150.0,0.00022548,2]
[314271866,1708139431886,-150.0,0.00022548,2]
[314271867,1708139431895,-177.43,0.00022548,2]
[314271868,1708139431904,-2948.10996121,0.00022561,2]
[314271869,1708139431915,-546.12694579,0.00022569,2]
[314271870,1708139431927,-208.33,0.00022596,2]
[314271871,1708139431937,-1381.67,0.00022602,2]
[314271872,1708139431946,-546.12694579,0.0002261,2]
[314271873,1708139431955,-546.12694579,0.00022652,2]
[314271874,1708139431966,-208.33,0.00022657,2]
[314271875,1708139431975,-2948.10996121,0.00022674,2]
[314271876,1708139431984,-546.12694579,0.00022693,2]
[314271877,1708139431994,-1381.67,0.00022717,2]
[314271878,1708139432004,-208.33,0.00022718,2]
[314271879,1708139432014,-546.12694579,0.00022735,2]
[314271880,1708139432023,-546.12694579,0.00022776,2]
[314271881,1708139432033,-208.33,0.00022779,2]
[314271882,1708139432042,-2948.10996121,0.00022787,2]
[314271883,1708139432052,-150.0,0.00022809,2]
[314271884,1708139432061,-546.12694579,0.00022817,2]
[314271885,1708139432071,-250.0,0.00022822,2]
[314271886,1708139432080,-427.33,0.00022822,2]
[314271887,1708139432091,-688.82,0.00022822,2]
[314271888,1708139432100,-1381.67,0.00022831,2]
[314271889,1708139432110,-208.33,0.0002284,2]
[314271890,1708139432119,-546.12694579,0.00022859,2]
[314271891,1708139432129,-1069.53638316,0.00022898,2]
[314271892,1708139432138,-5924.67457111,0.000229,2]
[314271893,1708139432147,-197.5872731,0.000229,2]
[314271894,1708139432158,-192.98438279,0.000229,2]
[314271895,1708139432167,-8375.15878826,0.000229,2]
[314271896,1708139432176,-1400.51078207,0.000229,2]
[314271897,1708139432185,-170.02455229,0.000229,2]
[314271898,1708139432194,-16628.68,0.000229,2]
[314271899,1708139432203,-15684.33472061,0.000229,2]
[314271900,1708139432238,-7522.84527939,0.000229,2]
[314271901,1708139432248,-245.94,0.000229,2]
[314271902,1708139432257,-1456.45684562,0.000229,2]
[314271903,1708139432267,-429.35053285,0.000229,2]
[314271904,1708139432276,-546.12694579,0.000229,2]
[314271905,1708139432286,-555.43607181,0.000229,2]
[314271906,1708139432295,-2948.10996121,0.000229,2]
[314271907,1708139432303,-1940.5399829,0.00022901,2]
[314271908,1708139432313,-2041.77735663,0.00022901,2]
[314271909,1708139432321,-208.33,0.00022902,2]
[314271910,1708139432330,-1381.67,0.00022945,2]
[314271911,1708139432339,-208.33,0.00022963,2]
[314271912,1708139432349,-416.75813602,0.0002299,2]
[314271913,1708139432358,-416.75813602,0.0002299,2]
[314271914,1708139432368,-155.38673547,0.00022998,2]
[314271915,1708139432377,-261.36394344,0.00022999,2]
[314271916,1708139432386,-454.77325178,0.00022999,2]
[314271917,1708139432395,-650.0,0.00022999,2]
[314271918,1708139432404,-500.0,0.00022999,2]
[314271919,1708139432414,-328.59023295,0.00022999,2]
[314271920,1708139432423,-500.0,0.00022999,2]
[314271921,1708139432431,-500.0,0.00022999,2]
[314271922,1708139432440,-500.0,0.00022999,2]
[314271923,1708139432449,-500.0,0.00022999,2]
[314271924,1708139432458,-1002.6138,0.00022999,2]
[314271925,1708139432467,-894621.84381937,0.00023,2]
[314271926,1708139432476,-1015389.54255204,0.00023,2]
[314271927,1708139432681,-450225.35446744,0.00023,2]
[314271928,1708139432755,537.42161401,0.00022201,2]
[314271929,1708139439143,-5592.61584234,0.00023,2]
[314271930,1708139439156,-4231.54785497,0.00023,2]
[314271931,1708139439199,-911.59848134,0.00023,2]
[314271932,1708139439211,-244638.95865176,0.00023,2]
[314271933,1708139439221,-1579.35165609,0.00023001,2]
[314271934,1708139439231,-208.33,0.00023024,2]
[314271935,1708139439242,-300.0,0.00023059,2]
[314271936,1708139439251,-1381.67,0.00023059,2]
[314271937,1708139439261,-1256.58049079,0.00023069,2]
[314271938,1708139439270,-208.33,0.00023085,2]
[314271939,1708139439280,-251.93415778,0.00023096,2]
[314271940,1708139439289,-150.0,0.00023096,2]
[314271941,1708139439299,-150.0,0.00023096,2]
[314271942,1708139439308,-177.43,0.00023096,2]
[314271943,1708139439483,-208.33,0.00023146,2]
[314271944,1708139439493,-1381.67,0.00023173,2]
[314271945,1708139439502,-208.33,0.00023207,2]
[314271946,1708139439511,-208.33,0.00023268,2]
[314271947,1708139439520,-1381.67,0.00023287,2]
[314271948,1708139439529,-208.33,0.00023329,2]
[314271949,1708139439539,-4937.14,0.00023333,2]
[314271951,1708139439548,-208.33,0.00023391,2]
[314271953,1708139439556,-1381.67,0.00023401,2]
[314271955,1708139439565,-208.33,0.00023452,2]
[314271957,1708139439575,-1381.67,0.00023516,2]
[314271959,1708139439584,-163.54,0.00023569,2]
[314271961,1708139439593,-1381.67,0.0002363,2]
[314271963,1708139439602,-150.0,0.00023644,2]
[314271965,1708139439611,-222.0878001,0.00023644,2]
[314271967,1708139439620,-177.43,0.00023644,2]
[314271969,1708139439629,-1381.67,0.00023744,2]
[314271971,1708139439638,-153.17302421,0.00023782,2]
[314271972,1708139439647,-1381.67,0.00023858,2]
[314271974,1708139439656,-169.18,0.00024065,2]
[314271976,1708139439665,-150.0,0.00024192,2]
[314271978,1708139439674,-177.43,0.00024192,2]
[314271980,1708139439683,-183.59457969,0.000243,2]
[314271982,1708139439693,-1098.96,0.00024307,2]
[314271984,1708139439702,-309.15,0.00024369,2]
[314271986,1708139439711,-2893.46,0.00024384,2]
[314271988,1708139439720,-300.0,0.00024429,2]
[314271990,1708139439730,-8375.15878825,0.00024503,2]
[314271991,1708139439739,-210.0,0.00024521,2]
[314271992,1708139439748,-500.0,0.00024658,2]
[314271993,1708139439757,-250.0,0.00024658,2]
[314271994,1708139439766,-150.0,0.0002474,2]
[314271995,1708139439776,-177.43,0.0002474,2]
[314271996,1708139439786,-163.54,0.00024798,2]
[314271997,1708139439795,-4937.14,0.00024977,2]
[314271998,1708139439804,-800.0,0.00024986,2]
[314271999,1708139439813,-1000.0,0.00024999,2]
[314272000,1708139439823,-3058.45664641,0.00025,2]
[314272001,1708139439832,-886.0,0.0002502,2]
[314272002,1708139439841,-800.0,0.00025224,2]
[314272003,1708139439850,-309.15,0.00025231,2]
[314272004,1708139439860,-150.0,0.00025288,2]
[314272005,1708139439869,-177.43,0.00025288,2]
[314272006,1708139439878,-150.0,0.00025836,2]
[314272007,1708139439888,-177.43,0.00025836,2]
[314272008,1708139439897,-169.18,0.00025916,2]
[314272009,1708139439907,-163.54,0.00026027,2]
[314272010,1708139439917,-150.0,0.00026079,2]
[314272011,1708139439930,-309.15,0.00026093,2]
[314272012,1708139439939,-8375.15878825,0.00026106,2]
[314272013,1708139439949,-167.0,0.00026217,2]
[314272014,1708139439958,-1400.51078203,0.00026247,2]
[314272015,1708139439968,-886.0,0.00026271,2]
[314272016,1708139439977,-150.0,0.00026384,2]
[314272017,1708139439986,-177.43,0.00026384,2]
[314272018,1708139439996,-1098.96,0.00026571,2]
[314272019,1708139440005,-4937.14,0.00026621,2]
[314272020,1708139440015,-164.11335802,0.00026932,2]
[314272021,1708139440024,-177.43,0.00026932,2]
[314272022,1708139440033,-309.15,0.00026954,2]
[314272023,1708139440042,-600.0,0.00027,3]
[314272024,1708139440052,-167.0,0.00027082,2]
[314272025,1708139440061,-707.35777953,0.00027326,13]
[314272026,1708139440071,-155.0,0.00027397,2]
[314272027,1708139440081,-150.0,0.00027397,2]
[314272028,1708139440091,-163.15,0.00027397,2]
[314272029,1708139440100,-177.43,0.0002748,2]
[314272030,1708139440110,-886.0,0.00027522,2]
[314272031,1708139440119,-163.15,0.00027575,2]
[314272032,1708139440129,-8375.15878825,0.00027709,2]
[314272033,1708139440139,-163.15,0.00027753,2]
[314272034,1708139440148,-169.18,0.00027767,2]
[314272035,1708139440157,-309.15,0.00027816,2]
[314272036,1708139440166,-555.43607178,0.0002792,2]
[314272037,1708139440176,-163.15,0.00027932,2]
[314272038,1708139440185,-150.0,0.00027945,2]
[314272039,1708139440194,-167.0,0.00027947,2]
[314272040,1708139440203,-800.0,0.00028027,2]
[314272041,1708139440212,-177.43,0.00028028,2]
[314272042,1708139440222,-163.15,0.0002811,2]
[314272043,1708139440231,-4937.14,0.00028264,2]
[314272044,1708139440240,-163.15,0.00028288,2]
[314272045,1708139440250,-163.15,0.00028466,2]
[314272046,1708139440260,-150.0,0.00028493,2]
[314272047,1708139440269,-177.43,0.00028576,2]
[314272048,1708139440279,-163.15,0.00028644,2]
[314272049,1708139440288,-309.15,0.00028678,2]
[314272050,1708139440297,-155.0,0.00028767,2]
[314272051,1708139440306,-886.0,0.00028773,2]
[314272052,1708139440315,-167.0,0.00028813,2]
[314272053,1708139440325,-163.15,0.00028822,2]
[314272054,1708139440334,-1098.96,0.00028835,2]
[314272055,1708139440344,-650.0,0.00029,3]
[314272056,1708139440353,-150.0,0.00029041,2]
[314272057,1708139440363,-177.43,0.00029124,2]
[314272058,1708139440374,-8375.15878825,0.00029312,2]
[314272059,1708139440383,-309.15,0.0002954,2]
[314272060,1708139440392,-150.0,0.00029589,2]
[314272061,1708139440400,-1400.51078203,0.00029595,2]
[314272062,1708139440410,-169.18,0.00029618,2]
[314272063,1708139440419,-177.43,0.00029672,2]
[314272064,1708139440428,-167.0,0.00029678,2]
[314272065,1708139440438,-4937.14,0.00029908,2]
[314272066,1708139440446,-1013.97561219,0.0003,2]
[314272067,1708139440456,-501.45983169,0.0003,4]
[314272068,1708139440465,-9769.28131514,0.0003,2]
[314272069,1708139440474,-155.08301787,0.0003,4]
[314272070,1708139440483,-155.0,0.0003,2]
[314272071,1708139440493,-886.0,0.00030024,2]
[314272072,1708139440502,-419.6,0.00030057,2]
[314272073,1708139440511,-1000.0,0.0003009,2]
[314272074,1708139440520,-156.62,0.00030137,2]
[314272075,1708139440530,-155.0,0.00030137,2]
[314272076,1708139440539,-150.0,0.00030137,2]
[314272077,1708139440548,-177.43,0.0003022,2]
[314272078,1708139440558,-167.0,0.00030544,2]
[314272079,1708139440567,-176.26794291,0.00030685,2]
[314272080,1708139440576,-319.67157809,0.00030768,2]
[314272081,1708139440586,-800.0,0.00030829,2]
[314272082,1708139440595,-8375.15878825,0.00030915,2]
[314272083,1708139440604,-156.62,0.0003105,2]
[314272084,1708139440614,-1098.96,0.00031099,2]
[314272085,1708139440623,-169.18,0.00031469,2]
[314272086,1708139440632,-155.0,0.00031507,2]
[314272087,1708139440642,-1000.0,0.00031516,2]
[314272088,1708139440651,-169.31,0.00031644,2]
[314272089,1708139440660,-1456.45684561,0.00031751,2]
[314272090,1708139440669,-707.35777953,0.00031752,19]
[314272091,1708139440679,-1940.53998289,0.00031752,2]
[314272092,1708139440688,-416.75813602,0.0003179,2]
[314272093,1708139440697,-1240.26025782,0.000318,3]
[314272094,1708139440706,-273530.117089,0.000318,3]
[314272095,1708139440716,-429.35053285,0.000319,2]
[314272096,1708139440725,-156.62,0.00031963,2]
[314272097,1708139440734,-200.0,0.00032082,2]
[314272098,1708139440745,-1618.58,0.0003218,2]
[314272099,1708139440755,-1000.0,0.00032302,2]
[314272100,1708139440764,-2041.77735662,0.00032401,2]
[314272101,1708139440774,-329.92311316,0.00032449,2]
[314272102,1708139440783,-8375.15878825,0.00032519,4]
[314272103,1708139440792,-333.0,0.0003253,2]
[314272104,1708139440802,-153.23,0.00032598,2]
[314272105,1708139440811,-219.90621448,0.00032777,6]
[314272106,1708139440821,-153.23,0.00032801,2]
[314272107,1708139440830,-156.62,0.00032877,2]
[314272108,1708139440840,-37326.86,0.00032877,2]
[314272109,1708139440849,-155.0,0.00032877,2]
[314272110,1708139440859,-5573.0,0.000329,2]
[314272111,1708139440869,-555.43607178,0.00032939,2]
[314272112,1708139440879,-1400.51078203,0.00032942,2]
[314272113,1708139440888,-153.23,0.00033005,2]
[314272114,1708139440897,-153.23,0.00033209,2]
[314272115,1708139440906,-444.0,0.0003325,2]
[314272116,1708139440916,-169.18,0.00033321,2]
[314272117,1708139440930,-1098.96,0.00033363,2]
[314272118,1708139440939,-153.23,0.00033412,2]
[314272119,1708139440948,-153.23,0.00033616,2]
[314272120,1708139440958,-800.0,0.00033632,2]
[314272121,1708139440968,-2288.0,0.000337,3]
[314272122,1708139440978,-156.62,0.0003379,2]
[314272123,1708139440987,-15139.0,0.000338,3]
[314272124,1708139440998,-153.23,0.0003382,2]
[314272125,1708139441007,-153.895698,0.000339,2]
[314272126,1708139441016,-153.89569785,0.000339,2]
[314272127,1708139441025,-153.89569785,0.000339,2]
[314272128,1708139441035,-153.89569785,0.000339,2]
[314272129,1708139441044,-153.89569785,0.000339,2]
[314272130,1708139441053,-153.23,0.00034024,2]
[314272131,1708139441063,-153.89569785,0.00034119,2]
[314272132,1708139441073,-8375.15878825,0.00034122,6]
[314272133,1708139441082,-5573.32742096,0.000342,2]
[314272134,1708139441092,-153.23,0.00034227,2]
[314272135,1708139441101,-162.20812429,0.00034247,2]
[314272136,1708139441111,-555.0,0.0003425,2]
[314272137,1708139441120,-153.23,0.00034431,2]
[314272138,1708139441130,-1000.0,0.00034514,2]
[314272139,1708139441140,-485.185065,0.0003452,2]
[314272140,1708139441149,-9724.238211,0.0003452,2]
[314272141,1708139441159,-2438.685901,0.0003452,2]
[314272142,1708139441168,-11910.452667,0.0003452,2]
[314272143,1708139441178,-2264.55,0.00034521,2]
[314272144,1708139441187,-153.23,0.00034635,2]
[314272145,1708139441197,-156.62,0.00034703,2]
[314272146,1708139441206,-727.777597,0.00034794,2]
[314272147,1708139441216,-14586.357317,0.00034794,2]
[314272148,1708139441226,-3658.028851,0.00034794,2]
[314272149,1708139441236,-17865.679,0.00034794,2]
[314272150,1708139441245,-153.23,0.00034839,2]
[314272151,1708139441254,-3127.52225063,0.000349,2]
[314272152,1708139441264,-3127.52225059,0.000349,2]
[314272153,1708139441273,-3127.52225059,0.000349,2]
[314272154,1708139441283,-3127.52225059,0.000349,2]
[314272155,1708139441292,-3127.52225059,0.000349,2]
[314272156,1708139441301,-3127.52225059,0.000349,2]
[314272157,1708139441311,-3127.52225059,0.000349,2]
[314272158,1708139441321,-3127.52225059,0.000349,2]
[314272159,1708139441330,-2551.43713194,0.00034906,2]
[314272160,1708139441339,-970.37013,0.00034931,2]
[314272161,1708139441348,-19448.476423,0.00034931,2]
[314272162,1708139441358,-4877.371802,0.00034931,2]
[314272163,1708139441367,-23820.905334,0.00034931,2]
[314272164,1708139441376,-155.26424336,0.00035,4]
[314272165,1708139441386,-420.37567499,0.00035,2]
[314272166,1708139441395,-484.08793418,0.00035,2]
[314272167,1708139441405,-18211.22257101,0.00035,2]
[314272168,1708139441414,-153.23,0.00035042,2]
[314272169,1708139441423,-1212.962663,0.00035068,2]
[314272170,1708139441432,-24310.595529,0.00035068,2]
[314272171,1708139441442,-6096.714752,0.00035068,2]
[314272172,1708139441451,-29776.131668,0.00035068,2]
[314272173,1708139441461,-206.0,0.000351,2]
[314272174,1708139441470,-153.23,0.00035246,2]
[314272175,1708139441479,-666.0,0.0003525,2]
[314272176,1708139441489,-22955.24366983,0.00035339,2]
[314272177,1708139441498,-1698.147728,0.00035342,2]
[314272178,1708139441507,-34034.83374,0.00035342,2]
[314272179,1708139441517,-8535.400654,0.00035342,2]
[314272180,1708139441527,-41686.584335,0.00035342,2]
[314272181,1708139441537,-153.23,0.0003545,2]
[314272182,1708139441546,-3127.52225059,0.00035532,2]
[314272183,1708139441555,-500.0,0.000356,2]
[314272184,1708139441565,-500.0,0.00035616,2]
[314272185,1708139441574,-500.0,0.00035616,2]
[314272186,1708139441583,-500.0,0.00035616,2]
[314272187,1708139441592,-500.0,0.00035616,2]
[314272188,1708139441602,-500.0,0.00035616,2]
[314272189,1708139441611,-500.0,0.00035616,2]
[314272190,1708139441621,-500.0,0.00035616,2]
[314272191,1708139441630,-500.0,0.00035616,2]
[314272192,1708139441640,-500.0,0.00035616,2]
[314272193,1708139441649,-500.0,0.00035616,2]
[314272194,1708139441658,-500.0,0.00035616,2]
[314272195,1708139441668,-500.0,0.00035616,2]
[314272196,1708139441677,-500.0,0.00035616,2]
[314272197,1708139441686,-500.0,0.00035616,2]
[314272198,1708139441695,-500.0,0.00035616,2]
[314272199,1708139441704,-500.0,0.00035616,2]
[314272200,1708139441714,-500.0,0.00035616,2]
[314272201,1708139441723,-500.0,0.00035616,2]
[314272202,1708139441732,-500.0,0.00035616,2]
[314272203,1708139441742,-500.0,0.00035616,2]
[314272204,1708139441751,-156.62,0.00035616,2]
[314272205,1708139441761,-2893.46,0.00035616,2]
[314272206,1708139441770,-1500.0,0.00035616,10]
[314272207,1708139441780,-1098.96,0.00035626,2]
[314272208,1708139441789,-153.23,0.00035653,2]
[314272209,1708139441799,-8375.15878825,0.00035725,8]
[314272210,1708139441808,-2264.55,0.00035798,2]
[314272211,1708139441817,-153.23,0.00035857,2]
[314272212,1708139441827,-1940.74026,0.00036,2]
[314272213,1708139441836,-38896.952846,0.00036,2]
[314272214,1708139441846,-9754.743604,0.00036,2]
[314272215,1708139441855,-47641.810668,0.00036,2]
[314272216,1708139441865,-150.808351,0.00036,2]
[314272217,1708139441875,-200.0,0.00036092,2]
[314272218,1708139441885,-707.35777953,0.00036177,26]
[314272219,1708139441894,-1400.51078203,0.00036289,2]
[314272220,1708139441903,-153.89569785,0.00036363,2]
[314272221,1708139441913,-34855.64527575,0.00036389,2]
[314272222,1708139441925,-34855.64527573,0.00036389,2]
[314272223,1708139441934,-34855.64527573,0.00036389,2]
[314272224,1708139441944,-34855.64527573,0.00036389,2]
[314272225,1708139441953,-34855.64527573,0.00036389,2]
[314272226,1708139441964,-170.02455229,0.000365,2]
[314272227,1708139441973,-17788.0,0.00036512,2]
[314272228,1708139441982,-156.62,0.0003653,2]
[314272229,1708139441992,-183.59457966,0.00036633,2]
[314272230,1708139442003,-8192.37762161,0.00036697,3]
[314272231,1708139442012,-1000.0,0.00036727,2]
[314272232,1708139442022,-150.0,0.00036986,2]
[314272233,1708139442032,-300.0,0.00036986,7]
[314272234,1708139442041,-450.0,0.00036986,12]
[314272235,1708139442052,-316.64550976,0.00036986,17]
[314272236,1708139442161,-2264.55,0.00037075,2]
[314272237,1708139442184,-3127.52225059,0.00037111,2]
[314272238,1708139442193,-2112.79293948,0.00037111,10]
[314272239,1708139442203,-8375.15878825,0.00037328,10]
[314272240,1708139442212,-206.0,0.00037364,7]
[314272241,1708139442221,-156.62,0.00037443,2]